Cogmind - Beta 13 @@@ ROGUE MODE // 2024.06.20 @ 20:26:44 Player: Gabe+Kate4EVR Result: Destroyed by S-27 Virus with Autogun Performance ------------- Evolutions (3) 1500 Regions Visited (5) 1000 Robots Destroyed (3) 15 Value Destroyed (102) 102 Prototype IDs (1) 20 Alien Tech Used (0) 0 Bonus (-333) -333 TOTAL SCORE: 2304 Bonus ------- Pacifist 470 Follower Combat Kills 108 Friendly Fire -911 Cogmind --------- Core Integrity 0/700 Matter 25/300 Energy 100/100 System Corruption 1% Temperature Cool (0) Movement Core (50) Location -7/Lower Caves Parts ------- > --- POWER (1) -------- (None) > --- PROPULSION (2) --- (None) > --- UTILITY (8) ------ Salvage Targeting Computer > --- WEAPON (2) ------- (None) > --- INVENTORY (5) ---- Heart of Steel Peak State ------------ > --- POWER ------------ Light Deuterium Engine > --- PROPULSION ------- Cesium-ion Thruster > --- UTILITY ---------- Salvage Targeting Computer Heart of Steel > --- WEAPON ----------- Axe > --- INVENTORY -------- Light Ion Engine Medium Armor Plating High-powered Shotgun Barrage Gun [Rating: 35] Favorites ----------- Power Light Deuterium Engine Engine Light Deuterium Engine Propulsion Cesium-ion Thruster Leg Aluminum Leg Wheel Armored Huge Wheel Flight Unit Cesium-ion Thruster Utility Salvage Targeting Computer Device Heart of Steel Storage Small Storage Unit Processor Salvage Targeting Computer Hackware Hacking Suite Weapon Axe Energy Gun Beamcaster Ballistic Gun Light Assault Rifle Launcher Rocket Launcher Slashing Weapon Axe Build | -11 -10 -9 -8 -7 -7 ------- Run | Yrd Mat Mat Mat Fac Low Slots Evolved 6 | . . 2 2 2 . Power . | . . . . . . Propulsion . | . . . . . . Utility 6 | . . 2 2 2 . Weapon . | . . . . . . Parts Attached 20 | 5 . . 2 1 12 Power 3 | 1 . . . . 2 Engine 3 | 1 . . . . 2 Core . | . . . . . . Reactor . | . . . . . . Propulsion 5 | 2 . . . 1 2 Treads . | . . . . . . Leg 2 | 2 . . . . . Wheel 1 | . . . . 1 . Hover . | . . . . . . Flight 2 | . . . . . 2 Utility 6 | 1 . . 1 . 4 Device 3 | . . . . . 3 Storage 1 | 1 . . . . . Processor 1 | . . . . . 1 Hackware 1 | . . . 1 . . Protection . | . . . . . . Artifact . | . . . . . . Weapon 6 | 1 . . 1 . 4 Energy Gun 1 | . . . . . 1 Energy Cannon . | . . . . . . Ballistic Gun 1 | 1 . . . . . Ballistic Cannon . | . . . . . . Launcher 1 | . . . . . 1 Special Weapon . | . . . . . . Impact Weapon . | . . . . . . Slashing Weapon 3 | . . . 1 . 2 Piercing Weapon . | . . . . . . Special Melee Weapon . | . . . . . . Unidentified Prototypes 1 | . . . . . 1 Parts Lost 7 | . 1 1 . . 5 Power 1 | . . . . . 1 Propulsion 2 | . 1 . . . 1 Utility . | . . . . . . Weapon 4 | . . 1 . . 3 Highest Loss Streak 4 | . 1 1 . . 4 To Critical Strikes . | . . . . . . Average Slot Usage (%) 32 | . 61 8 7 11 32 Engine 5 | . 11 . . . 5 Leg 1 | . 22 . . . . Flight 5 | . . . . . 5 Device 5 | . . . . . 5 Processor 5 | . . . . . 6 Ballistic Gun 1 | . 14 8 . . . Slashing Weapon 5 | . . . 7 7 5 Naked Turns 53 | . . 39 14 . . Heaviest Build 18 | 9 9 1 3 3 18 Greatest Support 28 | 20 20 3 3 28 5 Greatest Overweight (x) 3 | . . . . . 3 Average Overweight (x) 1 | . . . . . 1 Largest Inventory Capacity 8 | 8 8 5 5 5 5 Average Capacity 5 | 7 7 5 5 5 5 Most Carried 5 | . 3 4 5 5 5 Average Carried 1 | . . 3 4 5 1 Final Capacity 8 | 8 5 5 5 5 5 Final Carried 5 | . 3 4 5 5 3 Class Distribution -------------------- 100% | Mutant Dominant Class ---------------- Mutant | -10/Materials Mutant | -9/Materials Mutant | -8/Materials Mutant | -7/Factory Mutant | -7/Lower Caves Resources | -11 -10 -9 -8 -7 -7 ----------- Run | Yrd Mat Mat Mat Fac Low Matter Collected 1160 | 179 . 62 20 . 899 Remotely . | . . . . . . Salvage Created 200 | . . . 60 . 140 Parts 9 | . . . 3 . 6 Haulers Intercepted 1 | . . . 1 . . Recyclers Shooed . | . . . . . . Parts Field Recycled . | . . . . . . Retrieved Matter . | . . . . . . Parts Self-Destructed 7 | . . . . . 7 Prevented . | . . . . . . Kills | -11 -10 -9 -8 -7 -7 ------- Run | Yrd Mat Mat Mat Fac Low Combat Hostiles Destroyed 2 | . . . . . 2 Melee 1 | . . . . . 1 Guns 1 | . . . . . 1 Classes Destroyed 3 | . . . 1 . 2 Hauler 1 | . . . 1 . . Duelist 1 | . . . . . 1 Mutant 1 | . . . . . 1 Best Kill Streak 1 | . . . 1 . 1 Combat Bots Only 1 | . . . . . 1 Max Kills in Single Turn 1 | . . . 1 . 1 Gunslinging . | . . . . . . Exploded . | . . . . . . Melee 1 | . . . . . 1 Uniques/NPCs Destroyed . | . . . . . . Combat | -11 -10 -9 -8 -7 -7 -------- Run | Yrd Mat Mat Mat Fac Low Hostile Shots Fired 177 | . 43 15 39 . 80 Missed 57 | . 10 5 16 . 26 Damage Taken 2193 | . 534 127 433 . 1099 Core 1424 | . 202 104 418 . 700 Absorbed by Shields . | . . . . . . Core Remaining (%) 54 | 100 19 74 24 . . Volleys Fired 13 | . 1 . . . 12 Largest 1 | . 1 . . . 1 Hottest 75 | . 20 . . . 75 Shots Fired 13 | . 1 . . . 12 Gun 13 | . 1 . . . 12 Cannon . | . . . . . . Launcher . | . . . . . . Special . | . . . . . . Kinetic 1 | . 1 . . . . Thermal 12 | . . . . . 12 Explosive . | . . . . . . Electromagnetic . | . . . . . . Robot Hit Streak 5 | . . . . . 5 Robot Miss Streak 3 | . 1 . . . 3 Penetration Max . | . . . . . . Secondary Targets . | . . . . . . Shots Hit Robots 17 | . . . 3 . 14 Core Hits 10 | . . . 1 . 9 Critical Kills . | . . . . . . Critical Parts Destroyed . | . . . . . . Critical Strikes . | . . . . . . Melee Attacks 11 | . . . 3 . 8 Impact . | . . . . . . Slashing 11 | . . . 3 . 8 Piercing . | . . . . . . Sneak Attacks 3 | . . . 1 . 2 Combat Hostiles . | . . . . . . Follow-up Attacks . | . . . . . . Damage Inflicted 628 | . 1 16 167 . 444 Guns 190 | . . . . . 190 Cannons . | . . . . . . Explosions . | . . . . . . Melee 401 | . . . 167 . 234 Ramming 37 | . 1 16 . . 20 Kinetic . | . . . . . . Thermal 190 | . . . . . 190 Explosive . | . . . . . . Electromagnetic . | . . . . . . Impact . | . . . . . . Slashing 401 | . . . 167 . 234 Piercing . | . . . . . . Highest Corruption 1 | . . 1 . . 1 Average Corruption 1 | . . 1 . . 1 Corruption Purged . | . . . . . . Corruption Blocked . | . . . . . . Overload Shots . | . . . . . . Overflow Damage 9 | . . . 9 . . Projectiles . | . . . . . . Explosions . | . . . . . . Melee 9 | . . . 9 . . Knockbacks . | . . . . . . Impact . | . . . . . . Kinetic . | . . . . . . Secondary . | . . . . . . Self-Inflicted Damage 16 | . . 7 . . 9 Shots . | . . . . . . Rammed 9 | . . 3 . . 6 Targets Rammed 10 | . 1 3 . . 6 Kicked 1 | . 1 . . . . Crushed . | . . . . . . Highest Temperature 203 | . 12 . . . 203 Average Temperature 103 | . 8 . . . 112 Received Heat Transfer 603 | . 270 84 153 . 96 Siege Activations . | . . . . . . Robots Corrupted . | . . . . . . Combat Hostiles . | . . . . . . Parts Fried . | . . . . . . Impact Corruptions . | . . . . . . Robots Melted . | . . . . . . Combat Hostiles . | . . . . . . Parts Melted . | . . . . . . Heat Transferred 333 | . . . . . 333 Parts Sabotaged . | . . . . . . Parts Stolen . | . . . . . . Parts Stripped . | . . . . . . Power Chain Reactions . | . . . . . . Alert | -11 -10 -9 -8 -7 -7 ------- Run | Yrd Mat Mat Mat Fac Low Peak Influence 102 | . 38 102 100 75 . Initial 45 | . . 22 42 45 . Average 35 | . 8 62 75 50 . Maximum Alert Level . | . . . . . . Low Security (%) 100 | 100 100 100 100 100 . Level 1 . | . . . . . . Level 2 . | . . . . . . Level 3 . | . . . . . . Level 4 . | . . . . . . Level 5 . | . . . . . . High Security . | . . . . . . Max Security . | . . . . . . Squads Dispatched 4 | . 1 2 1 . . Investigation 2 | . . 1 1 . . Extermination . | . . . . . . Reinforcement 2 | . 1 1 . . . Assault . | . . . . . . Garrison . | . . . . . . Intercept . | . . . . . . Searches Triggered . | . . . . . . Construction Impeded . | . . . . . . Haulers Reinforced . | . . . . . . Active Scanning Responses . | . . . . . . Cargo Convoy Interrupts . | . . . . . . Stealth | -11 -10 -9 -8 -7 -7 --------- Run | Yrd Mat Mat Mat Fac Low Distress Signals 1 | . . . 1 . . Communications Jammed . | . . . . . . Distress Signals . | . . . . . . Times Spotted 38 | . 8 8 8 1 13 Peak Tracking Total 6 | . 5 5 6 1 5 Tactical Retreats 4 | . 1 3 . . . Traps | -11 -10 -9 -8 -7 -7 ------- Run | Yrd Mat Mat Mat Fac Low Traps Triggered 3 | . 1 1 1 . . Indirectly . | . . . . . . Trap Hack Attempts . | . . . . . . Triggered . | . . . . . . Disarmed . | . . . . . . Reprogrammed . | . . . . . . Reused . | . . . . . . Traps Extracted . | . . . . . . Installed . | . . . . . . Triggered . | . . . . . . Machines | -11 -10 -9 -8 -7 -7 ---------- Run | Yrd Mat Mat Mat Fac Low Machines Disabled 1 | . . . . . 1 Max in Single Turn 1 | . . . . . 1 Machines Repaired . | . . . . . . Machines Dismantled . | . . . . . . Machines Sabotaged . | . . . . . . Overloaded Fab Kills . | . . . . . . Hacking | -11 -10 -9 -8 -7 -7 --------- Run | Yrd Mat Mat Mat Fac Low Machines Accessed 11 | . 4 2 3 1 1 Terminals 9 | . 4 2 2 1 . Fabricators . | . . . . . . Repair Stations . | . . . . . . Recycling Units . | . . . . . . Scanalyzers . | . . . . . . Garrison Access 1 | . . . 1 . . Total Hacks 26 | . 10 6 6 3 1 Successful 10 | . 4 2 3 . 1 Failed 16 | . 6 4 3 3 . Catastrophic 5 | . 1 2 1 1 . Database Lockouts . | . . . . . . Manual 27 | . 12 6 6 3 . Terminals 22 | . 10 6 3 3 . Fabricators . | . . . . . . Repair Stations . | . . . . . . Recycling Units . | . . . . . . Scanalyzers . | . . . . . . Garrison Access 3 | . . . 3 . . Terminal Hacks 1 | . . . . . 1 Open Door 1 | . . . . . 1 Fabricator Hacks . | . . . . . . Repair Station Hacks . | . . . . . . Recycling Unit Hacks . | . . . . . . Scanalyzer . | . . . . . . Garrison Access Hacks . | . . . . . . Unauthorized Hacks 8 | . 4 1 3 . . Terminals 7 | . 4 1 2 . . Track 6 | . 4 1 1 . . Operators 1 | . . . 1 . . Fabricators . | . . . . . . Repair Stations . | . . . . . . Recycling Units . | . . . . . . Scanalyzers . | . . . . . . Garrison Access 1 | . . . 1 . . Reprogram 1 | . . . 1 . . Data Cores Recovered . | . . . . . . Used . | . . . . . . Hacking Detections 8 | . 2 2 3 1 . Full Trace Events 3 | . 1 1 1 . . Feedback Events . | . . . . . . Feedback Blocked . | . . . . . . Robot Schematics Acquired . | . . . . . . Robots Built . | . . . . . . Authchips . | . . . . . . Time . | . . . . . . Total Robot Build Rating . | . . . . . . Part Schematics Acquired . | . . . . . . Parts Built . | . . . . . . Authchips . | . . . . . . Time . | . . . . . . Total Part Build Rating . | . . . . . . Parts Repaired . | . . . . . . Time . | . . . . . . Parts Recycled . | . . . . . . Recycled Matter . | . . . . . . Retrieved Matter . | . . . . . . Retrieved Components . | . . . . . . Parts Scanalyzed . | . . . . . . Part Schematics Acquired . | . . . . . . Parts Damaged . | . . . . . . Bothacking | -11 -10 -9 -8 -7 -7 ------------ Run | Yrd Mat Mat Mat Fac Low Used RIF Installer . | . . . . . . Robots Hacked . | . . . . . . Non-combat . | . . . . . . Combat . | . . . . . . Robot Hacks Applied . | . . . . . . Relay Couplers Released . | . . . . . . Fabnet Peak Effective % . | . . . . . . Robots Rewired 4 | . . . . . 4 Allies Hacked . | . . . . . . Hacks Repelled . | . . . . . . Allies | -11 -10 -9 -8 -7 -7 -------- Run | Yrd Mat Mat Mat Fac Low Total Allies 4 | . . . . . 4 Largest Group 3 | . . . . . 3 Highest-Rated Group 93 | . . . . . 93 Highest-Rated Ally 31 | . . . . . 31 Total Orders . | . . . . . . Ally Attacks 21 | . . . . . 21 Total Damage 429 | . . . . . 429 Kills 4 | . . . . . 4 Allies Corrupted . | . . . . . . Allies Melted . | . . . . . . Intel | -11 -10 -9 -8 -7 -7 ------- Run | Yrd Mat Mat Mat Fac Low Robot Analysis Total . | . . . . . . Derelict Logs Recovered 2 | . . . . . 2 Drone Launches . | . . . . . . Drone Recoveries . | . . . . . . Exploration | -11 -10 -9 -8 -7 -7 ------------- Run | Yrd Mat Mat Mat Fac Low Turns Passed 3480 | 75 199 124 103 51 2928 Spaces Moved 1834 | 60 199 180 162 96 1137 Core 720 | 6 67 180 162 93 212 Treads . | . . . . . . Legs 186 | 54 132 . . . . Wheels 3 | . . . . 3 . Hover . | . . . . . . Flight 925 | . . . . . 925 Fastest Speed 35 | 50 50 50 50 50 35 Average Speed 131 | 113 96 50 50 51 170 Slowest Speed 275 | 120 120 50 50 100 275 Overloaded Moves . | . . . . . . Propulsion Burnouts . | . . . . . . Robots Hopped 1 | . . . . . 1 Cave-ins Triggered . | . . . . . . Exploration Rate (%) 29 | 4 56 23 21 4 69 Regions Visited 5 Branch Regions 1 Pre-discovered Areas . | . . . . . . Known Exits Taken . | . . . . . . Unknown Exits Taken 5 | 1 1 1 1 1 . Scrap Searched 2 | . . . . . 2 Spaces Dug . | . . . . . . Terrain Destroyed . | . . . . . . Melee . | . . . . . . Projectile . | . . . . . . AOE . | . . . . . . Terrain Rammed . | . . . . . . Walls Destroyed . | . . . . . . Machines Disabled . | . . . . . . Actions | -11 -10 -9 -8 -7 -7 --------- Run | Yrd Mat Mat Mat Fac Low Total 2857 | 64 206 213 177 96 2101 Wait 928 | . 3 30 10 . 885 Move 1827 | 59 198 179 161 95 1135 Hop 1 | . . . . . 1 Pick Up 4 | . . 1 1 . 2 Fast Attach 14 | 5 . . 2 1 6 Attach 6 | . . . . . 6 Detach 9 | . 3 . . . 6 Swap . | . . . . . . Drop 8 | . . . . . 8 Fire 13 | . 1 . . . 12 Melee 11 | . . . 3 . 8 Ram 9 | . . 3 . . 6 Kick 1 | . 1 . . . . Crush . | . . . . . . Escape Stasis . | . . . . . . Rewire 26 | . . . . . 26 Trap . | . . . . . . Miscellaneous . | . . . . . . Route ------- -11/Scrapyard -10/Materials (discovered 4 exits: *Mat x3 / [*Min]) -9/Materials -8/Materials -7/Factory -7/Lower Caves History --------- Turn | Location | Event 6 | -11/Scrapyard | Discovered new exit (range 15) 76 | -11/Scrapyard | Entered Materials 196 | -10/Materials | Discovered new exit (range 13) 221 | -10/Materials | Discovered new exit (range 15) 251 | -10/Materials | Discovered new exit (range 7) 265 | -10/Materials | Core integrity fell below 50% 267 | -10/Materials | Discovered new exit (range 12) 275 | -10/Materials | Entered another Materials area 275 | -9/Materials | Evolved 2 slots: Utility x2 301 | -9/Materials | Build established: Mutant 392 | -9/Materials | Discovered new exit (range 15) 399 | -9/Materials | Entered another Materials area 399 | -8/Materials | Evolved 2 slots: Utility x2 494 | -8/Materials | Discovered new exit (range 16) 499 | -8/Materials | Core integrity fell below 50% 502 | -8/Materials | Entered Factory 502 | -7/Factory | Evolved 2 slots: Utility x2 546 | -7/Factory | Discovered new exit (range 14) 553 | -7/Factory | Entered Lower Caves 562 | -7/Lower Caves | Encountered a Warlord checkpoint 570 | -7/Lower Caves | Attracted the attention of an 0b10 checkpoint 611 | -7/Lower Caves | Attacked by a delusional Derelict stockpiling Unaware 626 | -7/Lower Caves | Learned Factory terminal intel 667 | -7/Lower Caves | Learned Factory non-interactive machine intel 672 | -7/Lower Caves | Murdered Warlord Statue 678 | -7/Lower Caves | Found Prototype Device 678 | -7/Lower Caves | Identified Heart of Steel 3043 | -7/Lower Caves | Attracted the attention of an 0b10 outpost 3090 | -7/Lower Caves | Lost 3 allies 3090 | -7/Lower Caves | Core integrity fell below 50% 3126 | -7/Lower Caves | Lost 4 parts (1p1n2w) 3473 | -7/Lower Caves | Core integrity fell below 20% 3481 | -7/Lower Caves | Destroyed by S-27 Virus with Autogun Last Messages --------------- 03137_ Penetrated by Slug. 03137_ Machine disabled. 03139_ Penetrated by Slug. 03140_ Y-64 Sentinel heat short circuits KE Penetrator. 03150_ Attempting to rewire L-41 Fighter. 03156_ L-41 Fighter rewired. 03209_ Acquired 20 matter. 03217_ Destroyed Imp. Treads. 03222_ Y-64 Sentinel destroyed. 03222_ Acquired 90 matter. 03226_ Broken Wave Gun fries itself beyond repair. 03238_ Broken Imp. Treads fries itself beyond repair. 03297_ Acquired 59 matter. 03456_ Destroyed VTOL Module. 03472_ Slammed into S-27 Virus. 03477_ Destabilizing: Core damaged (-35). 03478_ Rocket Launcher destroyed. 03478_ Slammed into S-27 Virus. 03479_ Destabilizing: System corrupted (+1). 03480_ Slammed into S-27 Virus. Map ----- +----------------------------------------------------+ | ???????????????????????????????????# #### ##??? | | ??????????????????????????????????## ### ##?? | | ??????????????????????????##??????# ### ### | | ??????????????????????????? ?????# ## | | ???????????????????????????? ?????# | | ???????????????????????????## ##### # | | ???????????????????????????# # # # ### ## | | ????????????????????????????# # ######## | | ??????????????????????#?????# # ##???## | | ??????????????????????# ????## # #?### | | ????????????????####### ?????## #### | | ??????????????## ??????## # #?# # | | ?????????????## #???#### # ##?# # | | ????????????# # ???# # #??### # | | ???????????# # #### # # ##????# # | | ????????????# # ## # #????# | | ???????????????# # ###????### | | ????????????# #### # #???????? | | ?????????????# ????????# # # ###??????? | | ??????????????# ??????# # # #??????? | | ???????????????# #????####### # ##?????? | | ????????????????? ?####### ## # ####### | | ??????????????????? ? ## # | | ????????????????????? # # ## # | | ?????????????????????# s ## #### ########## | | ????????????????# ###@#??# #??## ##????????? | | ????????????????#???????#s#### ##??## #????#####? | | ????????????????????????#s #???# ###?## ## | | ????????????????????????###### #???# ### | | ?????????????????????????????# #???# | | ???????????????????????????? #???#### ###### | | ?????????????????????????? #??????######????? | | ???????????????????????? ???????????????## | | ?????????????????????? #### ??????????????# | | ???????????????????? ????# ????????????? | | ?????????????????? #?????# ???????????? | | ?????????????????#### ???????# ??????????? | | ????????????????????#????????# #?????????? | | ?????????????????????????????? #?????????? | | ?????????????????????????????? #????????? | | ?????????????????????????????? #????????#### | | ?????????????????????????????? ???????????## | | ?????????????????????????????? ????????????# | | ?????????????????????????????? #??????????????# | | ?????????????????????????????? ??????????????? | | ???????????????????????????????????????????????? | | ????????????????????????????????????????????????## | | ?????????????????????????????????????????????????# | | ?????????????????????????????????????????????????? | | ?????????????????????????????????????????????????? | +----------------------------------------------------+ Best States ------------- Heat Dissipation 34 Energy Generation 14 Energy Capacity 140 Matter Stores 300 Matter Capacity 300 Sight Range 16 Terrain Scan Density 10 Evasion (%) 63 Salvage Targeting 1 Item Schematics ----------------- None Robot Schematics ------------------ None Fabricated ------------ Nothing Alien Tech Used ----------------- None Achievements -------------- None Challenges ------------ None Game ------ Seed RefineryCryofiberSpecial Manual? 0 Play Time 00:19:38 Cumulative 185.5 hours Start 2024.06.20 @ 20:07:08 End 2024.06.20 @ 20:26:44 Sessions 1 Manual Loads 0 Difficulty Rogue Special Mode None Game No. 362 Rogue 362 Adventurer 0 Explorer 0 Win Type - Total 0 Types 0/0/0/0/0/0/0/0/0 Lore% 51 Gallery% 67 Achievement% 46 Wizard Run 0 Options --------- Layout 0 ASCII 0 Keyboard 1 Movement Numpad Keybinds 0 Fullscreen 2 Font 18/X11 Map View 76x50 Zoom Use 0% Tactical HUD 1 Map Filters NONE Filters NONE Steam 1 RUN: 071b2ae1-185e-4429-b9d6-e75b6c50225f